fUSD/lending_fUSD_20240530
["ID","MTS","AMOUNT","RATE_DAILY","PERIOD"]
[328248485,1717102073089,-1606.76,0.00033876,30]
[328248486,1717102073122,-1606.76,0.00033876,30]
[328248487,1717102073156,-533.49,0.00033876,30]
[328248488,1717102073193,-1606.76,0.00033876,30]
[328248489,1717102073231,-1606.76,0.00033876,30]
[328248490,1717102073266,-1606.76,0.00033876,30]
[328248491,1717102073301,-648.69,0.00033876,30]
[328248492,1717102073336,-1606.76,0.00033876,30]
[328248493,1717102073375,-1606.76,0.00033876,30]
[328248494,1717102073411,-500.0,0.00033876,30]
[328248495,1717102073448,-415.52220779,0.00033876,30]
[328248496,1717102075635,1500.0,0.000128,4]
[328248497,1717102075931,3000.0,0.000129,4]
[328248504,1717102145105,-366.40351695,0.00012795,2]
[328248512,1717102231733,-1207.95616487,0.00012794,2]
[328248513,1717102231742,-152.28,0.0001299,2]
[328248514,1717102231751,-1243.63598945,0.00012991,2]
[328248515,1717102231761,-445.75430292,0.00012991,2]
[328248516,1717102231771,-319.57287822,0.00012991,2]
[328248517,1717102231781,-212.98738249,0.00012998,2]
[328248518,1717102231790,-180.63567268,0.00012998,2]
[328248519,1717102231799,-157.38893266,0.00012998,2]
[328248520,1717102231809,-541.55577053,0.00012998,2]
[328248521,1717102231819,-155.50105923,0.00012999,2]
[328248522,1717102231828,-306.83536219,0.00012999,2]
[328248523,1717102231838,-637.74520754,0.00012999,2]
[328248524,1717102231847,-150.0,0.00012999,2]
[328248525,1717102231857,-28693.6617993,0.00013,2]
[328248526,1717102231873,-956.0721124,0.00013,2]
[328248527,1717102231885,-960.42655982,0.00013,2]
[328248528,1717102231896,-5801.46363943,0.00013,2]
[328248529,1717102231911,-36321.67651421,0.00013,2]
[328248530,1717102231922,-535.511,0.00013,2]
[328248531,1717102231935,-2068.3400939,0.00013,2]
[328248532,1717102231946,-9898.41396264,0.00013,2]
[328248533,1717102231961,-2400.0,0.00013,2]
[328248534,1717102231972,-500.0,0.00013,2]
[328248535,1717102232052,-1150.65467205,0.00013,2]
[328248536,1717102232063,-3997.2538822,0.00013,2]
[328248537,1717102232074,-746.56164777,0.00013,2]
[328248538,1717102232085,-830.08689098,0.00013,2]
[328248541,1717102237717,-775.44461026,0.00013,2]
[328248542,1717102237729,-585.38794663,0.00013,2]
[328248543,1717102237740,-774.91831638,0.00013,2]
[328248544,1717102237751,-999.05068868,0.00013,2]
[328248545,1717102237763,-6591.9449085,0.00013,2]
[328248546,1717102237774,-1391.18950319,0.00013,2]
[328248547,1717102237804,-0.00659823,0.00013,2]
[328248548,1717102237834,-3399.9532182,0.00013,2]
[328248549,1717102237845,-790.78038868,0.00013,2]
[328248550,1717102237857,-1729.55783652,0.00013,2]
[328248551,1717102237869,-1151.7587563,0.00013,2]
[328248552,1717102237880,-500.0,0.00013,2]
[328248553,1717102237891,-2058.67543,0.00013,2]
[328248554,1717102237902,-17536.23838421,0.00013,2]
[328248555,1717102237914,-16169.82675154,0.00013,2]
[328248556,1717102237925,-318.54331447,0.00013,2]
[328248557,1717102237937,-529.82133345,0.00013,2]
[328248558,1717102237949,-4920.40179236,0.00013,2]
[328248563,1717102238162,-3162.31470448,0.00013,2]
[328248564,1717102238174,-7229.20000001,0.00013,2]
[328248565,1717102238186,-3726.19972867,0.00013,2]
[328248566,1717102238292,-9394.007581,0.00013,2]
[328248567,1717102238304,-668.631026,0.00013,2]
[328248568,1717102238319,-5115.04327528,0.00013,2]
[328248569,1717102238331,-7247.88125866,0.00013,2]
[328248570,1717102238342,-7154.86799684,0.00013,2]
[328248571,1717102238353,-9901.01985224,0.00013,2]
[328248572,1717102238365,-5085.22599903,0.00013,2]
[328248573,1717102238377,-7040.3643225,0.00013,2]
[328248574,1717102238390,-7706.84209174,0.00013,2]
[328248575,1717102238402,-3062.67819403,0.00013,2]
[328248576,1717102238414,-807.04598073,0.00013,2]
[328248577,1717102238425,-1130.3061736,0.00013,2]
[328248578,1717102238437,-444.11719502,0.00013,2]
[328248592,1717102240503,-8724.05439088,0.00013,2]
[328248624,1717102241242,-641.34967595,0.00013,2]
[328248625,1717102241283,-1532.83233641,0.00013,2]
[328248663,1717102243147,-366.976,0.00013,2]
[328248664,1717102243160,-1198.68,0.00013,2]
[328248665,1717102243171,-529.051163,0.00013,2]
[328248666,1717102243182,-754.89000018,0.00013,2]
[328248667,1717102243195,-129387.91195927,0.00013,2]
[328248668,1717102243206,-2788.00917493,0.00013,2]
[328248669,1717102243219,-2041.22415635,0.00013,2]
[328248670,1717102243234,-857.69234347,0.00013,2]
[328248671,1717102243245,-2129.69734771,0.00013,2]
[328248672,1717102243256,-813.78799327,0.00013,2]
[328248674,1717102243409,-4709.63530733,0.00013,2]
[328248675,1717102243475,-3747.14536065,0.00013,2]
[328248676,1717102243487,-2870.10991638,0.00013,2]
[328248677,1717102243499,-1396.85367872,0.00013,2]
[328248678,1717102243511,-1640.91763236,0.00013,2]
[328248679,1717102243523,-975.40414729,0.00013,2]
[328248680,1717102243534,-1299.7799031,0.00013,2]
[328248681,1717102243552,-622.24139103,0.00013,2]
[328248682,1717102243563,-1133.20005046,0.00013,2]
[328248683,1717102243594,-1078.79243425,0.00013,2]
[328248691,1717102246241,-5033.43349259,0.00013,2]
[328248692,1717102246252,-348.48057,0.00013,2]
[328248694,1717102246264,-77639.60279973,0.00013,2]
[328248696,1717102246277,-608.0,0.00013,2]
[328248698,1717102246288,-202157.47607765,0.00013,2]
[328248793,1717102759389,269.1191802,0.00033,90]
[328248804,1717102916711,4021.98643911,0.00033,90]
[328248809,1717103099876,-242.56,0.00011394,2]
[328248810,1717103099901,-14149.0805,0.00011456,2]
[328248811,1717103099929,-380.70037141,0.00012762,2]
[328248812,1717103099954,-1000.0,0.000129,2]
[328248813,1717103099980,-319.57287822,0.00012952,2]
[328248814,1717103100004,-377.4403719,0.00012989,2]
[328248815,1717103100030,-3071.29778177,0.0001299,2]
[328248816,1717103100059,-458333.10524444,0.00013,2]
[328248817,1717103107206,1791.88599377,0.00011393,2]
[328248818,1717103158135,-250.0,0.00013052,2]
[328248819,1717103158160,-365.75950857,0.00013109,2]
[328248822,1717103231124,1000.0,0.000129,2]
[328248823,1717103231340,-23504.24049143,0.00013109,2]
[328248824,1717103231366,-250.0,0.00013141,2]
[328248825,1717103231391,-499.99,0.00013151,2]
[328248826,1717103231414,-150.0,0.00013151,2]
[328248827,1717103231439,-817.0,0.00013256,2]
[328248828,1717103231463,-7765.74,0.00013374,2]
[328248829,1717103235670,650.55128486,0.00013108,2]
[328248830,1717103351118,-295.71972125,0.00013657,2]
[328248831,1717103379647,-7.74862567,0.00013657,2]
[328248832,1717103379673,-1299.84451728,0.00013657,2]
[328248833,1717103379700,-242.56,0.00013658,2]
[328248834,1717103379723,-1600.0,0.000137,5]
[328248835,1717103379745,-3300.0,0.000138,5]
[328248836,1717103379767,-5000.0,0.000139,5]
[328248837,1717103379789,-871.04318863,0.00013903,2]
[328248838,1717103379812,-165.36874236,0.00013905,2]
[328248839,1717103379833,-1560.14006019,0.00013944,2]
[328248840,1717103379855,-319.57287822,0.00013944,2]
[328248841,1717103379878,-152.28,0.0001399,2]
[328248842,1717103379900,-152.28,0.0001399,2]
[328248843,1717103379927,-152.28,0.0001399,2]
[328248844,1717103379963,-152.28,0.0001399,2]
[328248845,1717103379986,-784.97137019,0.00013991,2]
[328248846,1717103380009,-367.90327309,0.00013998,2]
[328248847,1717103380032,-1951.05971409,0.00013999,2]
[328248848,1717103380057,-2241409.84475313,0.00014,2]
[328248849,1717103403676,410.2719242,0.00013657,2]
[328248850,1717103405095,19751.57634227,0.00013657,2]
[328248851,1717103405351,946.5832297,0.00013657,2]
[328248852,1717103415088,362.51321978,0.00013657,2]
[328248853,1717103424988,2608.07457883,0.00013384,2]
[328248863,1717103431971,-713.15762672,0.00013657,2]
[328248865,1717103431980,-19021.91223746,0.00013657,2]
[328248868,1717103432037,-750.18857414,0.00013657,2]
[328248869,1717103432047,-168.10608322,0.00014044,2]
[328248870,1717103432056,-1903.42,0.00014576,2]
[328248871,1717103432066,-325.39983263,0.00015,2]
[328248872,1717103432075,-155.0,0.00015,2]
[328248873,1717103432084,-155.0,0.00015252,2]
[328248874,1717103432094,-1000.0,0.00015253,2]
[328248875,1717103432103,-544.33,0.00015276,2]
[328248876,1717103432112,-871.04318862,0.00015657,2]
[328248877,1717103432121,-2506.0,0.000157,2]
[328248878,1717103432131,-201.2,0.00015831,2]
[328248879,1717103432140,-242.56,0.00015921,2]
[328248880,1717103432150,-150.0,0.00016496,2]
[328248881,1717103432159,-179.53,0.00016712,2]
[328248882,1717103432169,-825.93473292,0.00016916,2]
[328248883,1717103432178,-1000.0,0.00017159,2]
[328248884,1717103432187,-2294.79725672,0.00017225,2]
[328248885,1717103432199,-871.04318862,0.00017412,2]
[328248886,1717103432208,-460.23173628,0.00017806,2]
[328248887,1717103432218,-302.97159658,0.00017807,2]
[328248888,1717103432227,-150.0,0.00017866,2]
[328248889,1717103432236,-804.89062484,0.00018,2]
[328248890,1717103432245,-544.33,0.00018016,2]
[328248891,1717103432254,-242.56,0.00018185,2]
[328248892,1717103432264,-250.0,0.00018468,2]
[328248893,1717103432273,-211.40351695,0.000185,2]
[328248894,1717103432282,-4424.62,0.00018646,2]
[328248895,1717103432291,-1000.0,0.00019066,2]
[328248896,1717103432300,-871.04318862,0.00019166,2]
[328248897,1717103432310,-500.0,0.00019178,2]
[328248899,1717103432319,-500.0,0.00019178,2]
[328248900,1717103432328,-500.0,0.00019178,2]
[328248901,1717103432338,-267.51079759,0.00019178,2]
[328248902,1717103432347,-592.94234806,0.00019178,2]
[328248903,1717103432356,-500.0,0.00019178,2]
[328248904,1717103432366,-426.32922572,0.00019178,2]
[328248905,1717103432376,-328.93319896,0.00019178,2]
[328248906,1717103432385,-5087.23,0.00019178,2]
[328248907,1717103432394,-3886.30484841,0.000192,2]
[328248908,1717103432403,-277.55993092,0.00019999,2]
[328248910,1717103432412,-156.19946984,0.00019999,2]
[328248912,1717103432421,-445.5768486,0.0002,2]
[328248914,1717103432430,-180.0617525,0.0002,2]
[328248916,1717103432442,-1043.83643081,0.0002,2]
[328248917,1717103432451,-299.15348563,0.0002,2]
[328248918,1717103432460,-638.07369942,0.0002,2]
[328248919,1717103432470,-6248.82552361,0.0002,2]
[328248920,1717103432479,-634.50759008,0.0002,2]
[328248921,1717103432488,-863.06900647,0.0002,2]
[328248922,1717103432498,-547.45858614,0.0002,2]
[328248923,1717103432507,-167.0,0.00020104,2]
[328248924,1717103432516,-1903.42,0.00020407,2]
[328248925,1717103432525,-242.56,0.00020449,2]
[328248926,1717103432535,-170.97,0.00020548,2]
[328248927,1717103432544,-544.33,0.00020756,2]
[328248928,1717103432554,-167.0,0.00020767,2]
[328248929,1717103432563,-871.04318862,0.0002092,2]
[328248930,1717103432573,-1000.0,0.00020973,2]
[328248931,1717103432582,-151.56,0.00021043,2]
[328248932,1717103432591,-150.157,0.00021043,2]
[328248933,1717103432601,-150.0,0.00021043,2]
[328248934,1717103432782,-976.0,0.00021043,2]
[328248935,1717103432800,-357.0,0.00021043,2]
[328248936,1717103432810,-229.788,0.00021043,2]
[328248937,1717103432820,-1224.0,0.00021043,2]
[328248938,1717103432831,-2400.0,0.00021043,2]
[328248939,1717103432841,-445.0,0.00021043,2]
[328248940,1717103432850,-165.0,0.00021043,2]
[328248941,1717103432861,-808.0,0.00021043,2]
[328248942,1717103432871,-150.0,0.00021043,2]
[328248943,1717103432880,-1652.0,0.00021043,2]
[328248944,1717103432890,-150.0,0.00021043,2]
[328248945,1717103432899,-1304.0,0.00021043,2]
[328248946,1717103432909,-216.0,0.00021043,2]
[328248947,1717103432918,-545.0,0.00021043,2]
[328248948,1717103432927,-3163.0,0.00021043,2]
[328248949,1717103432936,-289.0,0.00021143,2]
[328248950,1717103432948,-37963.0,0.00021143,2]
[328248951,1717103432957,-1468.0,0.00021143,2]
[328248952,1717103432966,-5143.0,0.00021143,2]
[328248953,1717103432975,-24715.69,0.0002137,2]
[328248954,1717103432985,-3368.51,0.0002137,2]
[328248955,1717103432994,-167.0,0.00021431,2]
[328248956,1717103433003,-250.0,0.00021918,2]
[328248957,1717103433012,-174.89,0.00021918,2]
[328248958,1717103433021,-170.83,0.00021918,2]
[328248959,1717103433030,-2000.0,0.00021918,2]
[328248960,1717103433040,-788.85640222,0.00022,2]
[328248961,1717103433049,-957.66970396,0.00022,2]
[328248962,1717103433059,-240.05036581,0.00022,2]
[328248963,1717103433068,-1060.29988407,0.00022,2]
[328248964,1717103433077,-167.0,0.00022094,2]
[328248965,1717103433086,-225.13053604,0.0002211,2]
[328248966,1717103433095,-1090.69263814,0.00022219,2]
[328248967,1717103433104,-22516.38917598,0.000225,2]
[328248968,1717103433114,-2935.96,0.00022562,2]
[328248969,1717103433123,-9999.99,0.00022562,2]
[328248970,1717103433132,-19999.99,0.00022562,2]
[328248971,1717103433142,-4417.99,0.00022562,2]
[328248972,1717103433151,-29999.99,0.00022562,2]
[328248973,1717103433160,-871.04318862,0.00022674,2]
[328248974,1717103433170,-242.56,0.00022713,2]
[328248975,1717103433179,-167.0,0.00022758,2]
[328248976,1717103433188,-1000.0,0.00022879,2]
[328248977,1717103433201,-155.0,0.00023,2]
[328248978,1717103433210,-173.0,0.00023,2]
[328248979,1717103433219,-167.0,0.00023422,2]
[328248980,1717103433228,-150.0,0.00024043,2]
[328248981,1717103433238,-150.0,0.00024043,2]
[328248982,1717103433248,-976.0,0.00024043,2]
[328248983,1717103433258,-329.661,0.00024043,2]
[328248984,1717103433267,-1224.0,0.00024043,2]
[328248985,1717103433277,-1695.518,0.00024043,2]
[328248986,1717103433288,-444.0,0.00024043,2]
[328248987,1717103433298,-156.03,0.00024043,2]
[328248988,1717103433308,-808.0,0.00024043,2]
[328248989,1717103433318,-150.0,0.00024043,2]
[328248990,1717103433328,-1652.0,0.00024043,2]
[328248991,1717103433338,-1304.0,0.00024043,2]
[328248992,1717103433349,-216.0,0.00024043,2]
[328248993,1717103433359,-545.0,0.00024043,2]
[328248994,1717103433369,-289.0,0.00024143,2]
[328248995,1717103433379,-7077.018,0.00024143,2]
[328248996,1717103433389,-1460.0,0.00024143,2]
[328248997,1717103433399,-5143.0,0.00024143,2]
[328248998,1717103433409,-180.0,0.0002423,2]
[328248999,1717103433420,-155.66,0.00024384,2]
[328249000,1717103433429,-278.11,0.00024384,2]
[328249001,1717103433438,-871.04318862,0.00024429,2]
[328249002,1717103433449,-6100.01695815,0.00024798,2]
[328249003,1717103433458,-6100.01695808,0.00024798,2]
[328249004,1717103433466,-6100.01695808,0.00024798,2]
[328249005,1717103433475,-6100.01695808,0.00024798,2]
[328249006,1717103433484,-6100.01695808,0.00024798,2]
[328249007,1717103433493,-6100.01695808,0.00024798,2]
[328249008,1717103433502,-6967.86902655,0.00024799,2]
[328249009,1717103433511,-6967.86902649,0.00024799,2]
[328249010,1717103433521,-6967.86902649,0.00024848,2]
[328249011,1717103433530,-6700.0,0.000249,9]
[328249012,1717103433539,-226.4347966,0.00024974,2]
[328249013,1717103433547,-242.56,0.00024977,2]
[328249014,1717103433557,-1274.06881089,0.00025,2]
[328249015,1717103433566,-2205.18777791,0.00025,2]
[328249016,1717103433575,-2861.33667385,0.00025,2]
[328249017,1717103433583,-1050.0,0.00025,2]
[328249018,1717103433592,-6967.86902649,0.00026041,2]
[328249019,1717103433601,-1188.08795347,0.00026083,2]
[328249020,1717103433610,-871.04318862,0.00026183,2]
[328249021,1717103433619,-6100.01695808,0.00026451,2]
[328249022,1717103433628,-150.0,0.00027,2]
[328249023,1717103433637,-970.0,0.00027043,2]
[328249024,1717103433646,-593.522,0.00027043,2]
[328249025,1717103433656,-197.172,0.00027043,2]
[328249026,1717103433665,-1646.0,0.00027043,2]
[328249027,1717103433675,-450.115,0.00027043,2]
[328249028,1717103433685,-213.0,0.00027043,2]
[328249029,1717103433696,-542.0,0.00027043,2]
[328249030,1717103433709,-1188.08795344,0.000271,2]
[328249031,1717103433718,-282.075,0.00027143,2]
[328249032,1717103433727,-5128.0,0.00027143,2]
[328249033,1717103433736,-6967.86902649,0.00027234,2]
[328249034,1717103433746,-242.56,0.00027241,2]
[328249035,1717103433755,-157.0,0.00027711,5]
[328249036,1717103433764,-871.04318862,0.00027937,2]
[328249037,1717103433774,-300.0,0.000282,2]
[328249038,1717103433785,-6967.86902649,0.00028428,2]
[328249039,1717103433795,-363.17148628,0.00028601,2]
[328249040,1717103433804,-6100.01695808,0.000287,2]
[328249041,1717103433813,-151.0,0.00028701,7]
[328249042,1717103433822,-800.0,0.00028767,2]
[328249043,1717103433831,-800.0,0.00028767,2]
[328249044,1717103433840,-800.0,0.00028767,2]
[328249045,1717103433849,-800.0,0.00028767,2]
[328249046,1717103433859,-800.0,0.00028767,2]
[328249047,1717103433868,-800.0,0.00028767,2]
[328249048,1717103433877,-436.0,0.00028852,2]
[328249049,1717103433887,-2266.09482819,0.000289,2]
[328249050,1717103433900,-8733.90517181,0.000289,2]
[328249051,1717103433909,-150.0,0.00028905,2]
[328249052,1717103433918,-1357.86476615,0.00029,2]
[328249053,1717103434029,-694.10139211,0.00029,2]
[328249054,1717103434039,-186.883335,0.00029198,2]
[328249055,1717103434048,-415.66291986,0.00029198,2]
[328249056,1717103434059,-620.69601314,0.00029198,2]
[328249057,1717103434068,-242.56,0.00029505,2]
[328249058,1717103434077,-1036.358933,0.00029563,2]
[328249059,1717103434087,-787.16435205,0.00029621,2]
[328249060,1717103434099,-2775.25944,0.00029621,2]
[328249071,1717103437989,-361.94773719,0.00013657,2]
[328249072,1717103437999,-38.05226281,0.00017259,2]
[328249073,1717103438301,-116.94773719,0.00017259,2]
[328249075,1717103438311,-162.0,0.00021143,2]
[328249076,1717103438320,-150.0,0.00024143,2]
[328249077,1717103438329,-150.0,0.00027143,2]
[328249078,1717103438338,-352.20630939,0.00028116,2]
[328249079,1717103438350,-835.88164405,0.00028116,2]
[328249081,1717103438359,-165.81959622,0.00029133,2]
[328249084,1717103438926,2608.07457883,0.00013116,2]
[328249110,1717103440726,-504.08999982,0.00029133,2]
[328249112,1717103440738,-518.1783574,0.00029133,2]
[328249114,1717103440748,-1337.25019018,0.00029621,2]
[328249116,1717103440759,-2068.19504426,0.00029621,2]
[328249118,1717103440769,-871.04318862,0.00029691,2]
[328249120,1717103440778,-151.97604568,0.00029766,2]
[328249122,1717103440787,-490.44016337,0.00029836,2]
[328249124,1717103440796,-656.26745335,0.00029853,2]
[328249126,1717103440806,-2007.84808752,0.000299,2]
[328249128,1717103440815,-157.94374797,0.0002992,2]
[328249130,1717103440824,-1036.358933,0.00029928,2]
[328249132,1717103440834,-204.20305472,0.00029968,2]
[328249133,1717103440843,-166.66666668,0.00029991,2]
[328249135,1717103440852,-161.11298454,0.00030001,7]
[328249137,1717103440861,-157.94374797,0.00030009,7]
[328249138,1717103440871,-153.97017158,0.00030011,7]
[328249139,1717103440880,-150.0,0.000301,2]
[328249141,1717103440889,-153.82452482,0.00030112,7]
[328249143,1717103440899,-156.67648748,0.00030131,7]
[328249145,1717103440908,-200.0,0.00030137,2]
[328249147,1717103440917,-150.0,0.00030143,2]
[328249149,1717103440926,-259.7446793,0.00030163,7]
[328249151,1717103440935,-500.0,0.00030163,2]
[328249153,1717103440945,-500.0,0.00030163,2]
[328249155,1717103440954,-161.11298454,0.00030174,7]
[328249157,1717103440963,-151.0,0.00030234,7]
[328249158,1717103440972,-259.7446793,0.00030279,7]
[328249160,1717103440981,-1036.358933,0.00030293,2]
[328249163,1717103440992,-151.97604568,0.00030299,7]
[328249166,1717103441209,-278.11,0.0003031,2]
[328249167,1717103441223,-151.97604568,0.0003033,7]
[328249168,1717103441234,-153.82452482,0.00030346,7]
[328249169,1717103441243,-500.0,0.00030364,2]
[328249170,1717103441252,-500.0,0.00030364,2]
[328249171,1717103441262,-500.0,0.00030364,2]
[328249172,1717103441271,-500.0,0.00030364,2]
[328249173,1717103441280,-500.0,0.00030364,2]
[328249174,1717103441289,-500.0,0.00030364,2]
[328249175,1717103441298,-155.47784374,0.00030422,7]
[328249176,1717103441307,-170.58240984,0.00030422,7]
[328249177,1717103441316,-155.47784374,0.00030423,7]
[328249178,1717103441326,-656.26745335,0.00030424,7]
[328249179,1717103441335,-254.071215,0.0003043,7]
[328249180,1717103441344,-254.554355,0.0003043,7]
[328249181,1717103441353,-161.11298454,0.00030468,7]
[328249182,1717103441362,-166.66666667,0.00030481,7]
[328249183,1717103441372,-151.0,0.00030499,2]
[328249184,1717103441381,-166.66666666,0.000305,7]
[328249185,1717103441390,-157.67621733,0.00030515,7]
[328249186,1717103441399,-154.04715798,0.00030584,7]
[328249187,1717103441408,-1036.358933,0.00030658,2]
[328249188,1717103441417,-186.883335,0.00030658,2]
[328249189,1717103441426,-156.67648748,0.00030667,7]
[328249190,1717103441435,-490.44016337,0.00030735,7]
[328249191,1717103441444,-186.118644,0.00030765,7]
[328249192,1717103441454,-152.791686,0.00030765,7]
[328249193,1717103441463,-152.718714,0.00030765,7]
[328249194,1717103441472,-151.0,0.00030765,7]
[328249195,1717103441481,-250.618058,0.00030765,7]
[328249196,1717103441490,-250.618058,0.00030765,7]
[328249197,1717103441499,-37502.59100434,0.00030798,2]
[328249198,1717103441508,-155.26844865,0.00030798,4]
[328249199,1717103441517,-151.0,0.00030798,7]
[328249200,1717103441526,-151.0,0.00030798,7]
[328249201,1717103441535,-151.0,0.00030798,7]
[328249202,1717103441544,-151.0,0.00030798,7]
[328249203,1717103441553,-151.0,0.00030798,7]
[328249204,1717103441562,-151.0,0.00030798,7]
[328249205,1717103441572,-151.0,0.00030798,7]
[328249206,1717103441581,-151.0,0.00030798,7]
[328249207,1717103441590,-6967.86902649,0.00030814,10]
[328249208,1717103441600,-161.11298454,0.00030851,7]
[328249209,1717103441609,-176.15685437,0.00030871,2]
[328249210,1717103441618,-490.44016337,0.00030931,7]
[328249211,1717103441626,-259.7446793,0.00030947,7]
[328249212,1717103441636,-151.0,0.0003095,7]
[328249213,1717103441645,-151.0,0.0003095,7]
[328249214,1717103441654,-151.0,0.0003095,7]
[328249215,1717103441663,-55.65481885,0.0003095,7]
[328249216,1717103441679,-123.62592615,0.0003095,7]
[328249217,1717103441690,-151.0,0.0003095,7]
[328249218,1717103441700,-151.0,0.0003095,7]
[328249219,1717103441713,-151.0,0.0003095,7]
[328249220,1717103441722,-151.0,0.0003095,7]
[328249221,1717103441731,-3394.73903112,0.0003095,10]
[328249224,1717103443021,-328.79343974,0.00028699,2]
[328249225,1717103443030,-1550.90281857,0.0003095,10]
[328249226,1717103443042,-1154.37510839,0.0003095,10]
[328249227,1717103443052,-154.01608989,0.00030968,7]
[328249228,1717103443063,-2.66039759,0.00030968,7]
[328249229,1717103443073,-490.44016337,0.00030998,7]
[328249230,1717103443083,-1033.0,0.00031,8]
[328249231,1717103443092,-157.67621733,0.00031061,7]
[328249232,1717103443102,-656.26745335,0.00031075,7]
[328249233,1717103443112,-150.0,0.00031109,2]
[328249234,1717103443121,-167.19067972,0.00031115,7]
[328249235,1717103443131,-151.97604568,0.00031134,7]
[328249236,1717103443140,-1580.63814342,0.00031147,2]
[328249237,1717103443149,-194.6313974,0.00031147,2]
[328249238,1717103443158,-325.03698373,0.00031194,7]
[328249239,1717103443168,-151.0,0.00031217,7]
[328249240,1717103443177,-154.429163,0.00031217,7]
[328249241,1717103443186,-154.429163,0.00031217,7]
[328249242,1717103443194,-210.503295,0.00031217,7]
[328249243,1717103443204,-210.503295,0.00031217,7]
[328249244,1717103443214,-151.0,0.00031217,7]
[328249245,1717103443223,-151.0,0.00031217,7]
[328249246,1717103443232,-275.68005428,0.00031217,2]
[328249247,1717103443280,-2347.84782606,0.00031217,2]
[328249250,1717103446194,-1299.84451728,0.00017259,2]
[328249251,1717103446205,-17180.94540109,0.00031217,2]
[328249252,1717103446240,-325.52671857,0.00031217,2]
[328249253,1717103446250,-150.0,0.00031247,2]
[328249254,1717103446260,-150.0,0.00031247,2]
[328249255,1717103446269,-150.0,0.00031247,2]
[328249256,1717103446279,-25000.0,0.00031397,2]
[328249257,1717103446288,-157.67621733,0.00031398,7]
[328249258,1717103446298,-871.04318862,0.00031446,3]
[328249259,1717103446307,-155.0,0.00031477,4]
[328249260,1717103446317,-326.75309456,0.00031477,4]
[328249261,1717103446327,-154.04715798,0.00031478,7]
[328249262,1717103446336,-150.0,0.00031524,2]
[328249263,1717103446345,-168.43928935,0.00031602,7]
[328249264,1717103446355,-656.26745335,0.00031623,7]
[328249265,1717103446365,-153.82452482,0.00031625,7]
[328249266,1717103446374,-352.56,0.00031644,2]
[328249267,1717103446383,-421.62,0.00031644,2]
[328249268,1717103446392,-150.0,0.00031644,2]
[328249269,1717103446401,-300.0,0.00031644,2]
[328249270,1717103446410,-163.81,0.00031644,2]
[328249271,1717103446420,-150.0,0.00031644,2]
[328249272,1717103446429,-352.56,0.00031644,2]
[328249273,1717103446439,-421.62,0.00031644,2]
[328249274,1717103446448,-150.0,0.00031644,2]
[328249275,1717103446459,-150.0,0.00031644,2]
[328249276,1717103446467,-150.0,0.00031644,2]
[328249277,1717103446477,-163.81,0.00031644,2]
[328249278,1717103446486,-352.56,0.00031644,2]
[328249279,1717103446495,-421.62,0.00031644,2]
[328249280,1717103446505,-150.0,0.00031644,2]
[328249281,1717103446514,-150.0,0.00031644,2]
[328249282,1717103446524,-163.81,0.00031644,2]
[328249283,1717103446533,-300.0,0.00031644,2]
[328249284,1717103446543,-150.0,0.00031644,2]
[328249285,1717103446552,-421.62,0.00031644,2]
[328249286,1717103446561,-150.0,0.00031644,2]
[328249287,1717103446570,-163.81,0.00031644,2]
[328249288,1717103446580,-352.56,0.00031644,2]
[328249289,1717103446589,-421.62,0.00031644,2]
[328249290,1717103446598,-352.56,0.00031644,2]
[328249291,1717103446607,-163.81,0.00031644,2]
[328249292,1717103446617,-150.0,0.00031644,2]